[Event "ISR-ch Women 2018"]
[Site "Ma'alot-Tarshih"]
[Date "2018.12.14"]
[Round "3"]
[White "Reprun, Nadejda"]
[Black "Orian, Noga"]
[Result "1-0"]
[ECO "B92"]
[WhiteElo "2016"]
[BlackElo "1343"]
[Annotator "NA RC"]
[PlyCount "83"]
[EventDate "2018.12.11"]
[EventType "swiss"]
[EventCountry "ISR"]
[SourceTitle "playchess.com"]
[Source "ChessBase"]
[SourceQuality "1"]
[TimeControl "40/5400+30:1800+30"]

1. e4 {[%emt 0:00:00]} c5 {[%emt 0:00:00]} 2. Nf3 {[%emt 0:00:00]} d6 {[%emt 0:00:00]} 3. d4 {[%emt 0:00:00]} cxd4 {[%emt 0:00:00]} 4. Nxd4 {[%emt 0:00:00]} Nf6 {[%emt 0:00:00]} 5. Nc3 {[%emt 0:00:00]} a6 {[%emt 0:00:00]} 6. Be2 {[%emt 0:00:14]} e5 {[%emt 0:00:05]} 7. Nb3 {[%emt 0:00:06]} Be6 {[%emt 0:00:06] LiveBook: 318 Games} 8. O-O {[%emt 0:01:24]} Be7 {[%emt 0:00:09]} 9. Be3 {[%emt 0:01:01]} Nc6 {[%emt 0:01:09] B92: Sicilian Najdorf: 6 Be2} (9... O-O 10. Qd2 Nbd7 11. a4 Rc8 12. a5 Qc7 13. Rfd1 Rfe8 14. Nc1 Qc6 15. f3 Qc7 16. Nb3 h6 17. Rdc1 Qc6 18. Rd1 Qc7 19. Rdc1 Qc6 20. Rd1 {½-½ (20) Sjugirov,S (2674)-Nepomniachtchi,I (2703) Sochi 2016}) 10. f3 {[%emt 0:02:30]} Rc8 {[%emt 0:04:05]} 11. Qd2 {[%emt 0:03:07]} h6 $146 {[%emt 0:07:13]} ({Predecessor:} 11... O-O 12. Nd5 Re8 13. Bb6 Qd7 14. Rad1 Bxd5 15. exd5 Bd8 16. Bxd8 Nxd8 {1-0 (25) Graczyk,N (1769)-Gaudyn,R (1579) Katowice 2018}) 12. Rfd1 {[%emt 0:05:55]} Na5 {[%emt 0:08:36]} 13. Nd5 {[%emt 0:20:55]} Bxd5 {[%emt 0:10:39]} 14. Nxa5 {[%emt 0:02:02]} Bc6 {[%emt 0:00:10]} 15. Nxc6 {[%emt 0:01:54]} Rxc6 {[%emt 0:00:06]} 16. a4 {[%emt 0:04:44]} Qc7 {[%emt 0:01:09]} 17. c4 {[%emt 0:02:03]} Nd7 {[%emt 0:08:55]} 18. a5 {[%emt 0:02:43]} Nc5 $1 {[%emt 0:05:20]} 19. Ra3 {[%emt 0:00:15]} Ne6 {[%emt 0:03:31]} 20. b4 {[%emt 0:01:13]} Bg5 {[%emt 0:06:05]} 21. Bxg5 {[%emt 0:10:05]} hxg5 {[%emt 0:00:08]} 22. c5 {[%emt 0:02:31]} ({White should try} 22. Ra2 $14) 22... Nd4 {[%emt 0:03:42]} 23. Bc4 {[%emt 0:07:00]} Qd8 {[%emt 0:03:51]} 24. Bd5 {[%emt 0:03:21]} Rc7 {[%emt 0:03:53]} 25. Rd3 {[%emt 0:03:28]} f6 {[%emt 0:02:48]} 26. Rxd4 {[%emt 0:02:32]} exd4 {[%emt 0:00:40]} 27. Qxd4 {[%emt 0:00:10]} Ke7 {[%emt 0:04:43]} 28. Bb3 {[%emt 0:03:55]} Rd7 $2 {[%emt 0:21:05]} (28... dxc5 29. Qc4 Qe8) 29. Qd5 {[%emt 0:03:17]} Kf8 {[%emt 0:00:04]} 30. cxd6 {[%emt 0:00:34]} g6 {[%emt 0:00:33]} 31. Ba4 {[%emt 0:01:15]} Rhh7 {[%emt 0:00:35]} 32. Bxd7 {[%emt 0:03:05]} Rxd7 {[%emt 0:00:08]} 33. g3 {[%emt 0:02:11]} b6 {[%emt 0:01:47]} 34. Qc6 $18 {[%emt 0:01:07]} bxa5 {[%emt 0:00:58]} 35. bxa5 {[%emt 0:00:05]} Ra7 {[%emt 0:01:32]} 36. d7 {[%emt 0:00:43]} Kf7 {[%emt 0:01:13]} 37. Qc8 {[%emt 0:02:06]} Ra8 {[%emt 0:00:17]} 38. Qxa8 {[%emt 0:00:21]} Qxa8 {[%emt 0:01:14]} 39. d8=Q {[%emt 0:00:06]} Qa7+ {[%emt 0:00:31]} 40. Qb6 {[%emt 0:00:36]} Qe7 {[%emt 0:00:26]} 41. Rc1 {[%emt 0:30:55]} Qa3 {[%emt 0:30:53]} 42. Rc7+ {[%emt 0:00:08]} 1-0

[Event "ISR-ch Women 2018"]
[Site "Ma'alot-Tarshih"]
[Date "2018.12.14"]
[Round "3"]
[White "Levitan, Ronit"]
[Black "Buzukashvili, Sofia"]
[Result "1-0"]
[ECO "B22"]
[WhiteElo "1875"]
[BlackElo "1963"]
[Annotator "NA RC"]
[PlyCount "69"]
[EventDate "2018.12.11"]
[EventType "swiss"]
[EventCountry "ISR"]
[SourceTitle "playchess.com"]
[Source "ChessBase"]
[SourceQuality "1"]
[TimeControl "40/5400+30:1800+30"]

1. e4 {[%emt 0:00:00]} c5 {[%emt 0:00:00]} 2. c3 {[%emt 0:00:00]} g6 {[%emt 0:00:15]} 3. d4 {[%emt 0:00:00]} cxd4 {[%emt 0:00:16]} 4. cxd4 {[%emt 0:00:00]} d5 {[%emt 0:00:29]} 5. e5 {[%emt 0:00:00]} Nc6 {[%emt 0:00:47]} 6. Nc3 {[%emt 0:00:24]} Bg7 {[%emt 0:00:37]} 7. h3 {[%emt 0:00:26]} f6 {[%emt 0:01:32] B22: Sicilian: 2 c3} 8. f4 {[%emt 0:00:55]} Nh6 {[%emt 0:02:28]} 9. g4 {[%emt 0:00:29]} O-O {[%emt 0:04:02]} 10. Bg2 {[%emt 0:00:22]} fxe5 {[%emt 0:17:28]} 11. fxe5 {[%emt 0:02:40]} e6 {[%emt 0:07:27]} 12. Nf3 {[%emt 0:01:03]} a6 $146 {[%emt 0:04:25]} ({Predecessor:} 12... Bd7 13. Be3 Rc8 14. Qd2 Nf7 15. O-O {1-0 (35) Pavasovic,D (2597)-Lie,K (2526) Dresden 2008}) 13. O-O {[%emt 0:03:45]} Bd7 {[%emt 0:02:12]} 14. Be3 {[%emt 0:03:14]} Na5 {[%emt 0:08:26]} 15. b3 {[%emt 0:01:03]} Rc8 {[%emt 0:02:11]} 16. Qd2 {[%emt 0:02:31]} Nf7 {[%emt 0:01:53]} 17. h4 {[%emt 0:03:14]} Qb6 {[%emt 0:10:19]} 18. h5 {[%emt 0:04:22]} g5 {[%emt 0:14:32]} 19. Bxg5 {[%emt 0:16:37]} Nxe5 {[%emt 0:00:13]} 20. Nxe5 {[%emt 0:01:27]} Bxe5 {[%emt 0:00:06]} 21. Be3 {[%emt 0:00:18]} Bg7 {[%emt 0:06:42]} 22. h6 {[%emt 0:01:24]} Bf6 {[%emt 0:01:10]} 23. g5 {[%emt 0:00:54]} Bh8 $2 {[%emt 0:01:15] [#]} (23... Be7 $16 {is tougher.}) 24. Nxd5 $1 {[%emt 0:17:40]} exd5 {[%emt 0:01:30]} 25. Bxd5+ {[%emt 0:00:04]} Be6 {[%emt 0:00:06]} 26. Qxa5 {[%emt 0:00:27]} Qd6 {[%emt 0:05:09]} 27. Bxe6+ {[%emt 0:02:04]} Qxe6 {[%emt 0:00:04]} 28. Qd2 {[%emt 0:00:28]} Rfd8 {[%emt 0:07:15]} 29. Rf4 {[%emt 0:13:07]} Qh3 {[%emt 0:00:31]} 30. Re1 {[%emt 0:06:24]} Qg3+ {[%emt 0:00:12]} 31. Kh1 {[%emt 0:01:35]} Rc2 {[%emt 0:01:01]} 32. Qxc2 {[%emt 0:00:33]} Qxe1+ {[%emt 0:00:05]} 33. Kg2 {[%emt 0:00:06]} b5 {[%emt 0:00:56]} 34. Qe4 {[%emt 0:00:38]} Qe2+ {[%emt 0:00:54]} 35. Rf2 {[%emt 0:00:14]} 1-0

[Event "ISR-ch Women 2018"]
[Site "Ma'alot-Tarshih"]
[Date "2018.12.14"]
[Round "3"]
[White "Ovechkin, Lilia"]
[Black "Brusilovski, Lena"]
[Result "1-0"]
[ECO "E70"]
[WhiteElo "1779"]
[BlackElo "1886"]
[Annotator "NA RC"]
[PlyCount "49"]
[EventDate "2018.12.11"]
[EventType "swiss"]
[EventCountry "ISR"]
[SourceTitle "playchess.com"]
[Source "ChessBase"]
[SourceQuality "1"]
[TimeControl "40/5400+30:1800+30"]

1. d4 {[%emt 0:00:00]} Nf6 {[%emt 0:00:02]} 2. c4 {[%emt 0:04:22]} g6 {[%emt 0:03:04]} 3. Nc3 {[%emt 0:00:25]} Bg7 {[%emt 0:01:44]} 4. e4 {[%emt 0:02:13]} d6 {[%emt 0:00:54]} 5. Be3 {[%emt 0:01:11]} Ng4 {[%emt 0:02:52]} 6. Qd2 {[%emt 0:06:39]} Nxe3 {[%emt 0:00:52]} 7. Qxe3 {[%emt 0:01:26]} c6 {[%emt 0:03:16]} 8. Bd3 {[%emt 0:05:16]} Qb6 {[%emt 0:02:12]} 9. Nge2 {[%emt 0:01:12]} Qxb2 {[%emt 0:00:58]} 10. Rb1 {[%emt 0:01:08]} Qa3 {[%emt 0:00:14]} 11. Rb3 {[%emt 0:00:49]} Qa5 {[%emt 0:00:11]} 12. O-O {[%emt 0:01:02]} Qc7 {[%emt 0:00:41]} 13. f4 $17 {[%emt 0:07:02]} e5 {[%emt 0:04:45]} 14. fxe5 {[%emt 0:18:11]} dxe5 {[%emt 0:00:30]} 15. d5 {[%emt 0:00:54]} Nd7 {[%emt 0:05:40]} 16. Na4 {[%emt 0:11:15]} c5 {[%emt 0:03:13]} 17. Nec3 {[%emt 0:01:52]} a6 {[%emt 0:01:43]} 18. Rfb1 {[%emt 0:01:10]} Rb8 {[%emt 0:03:04]} 19. Nb6 {[%emt 0:01:13]} Nxb6 {[%emt 0:01:28]} 20. Rxb6 {[%emt 0:00:04]} Bf8 {[%emt 0:02:27]} 21. Bc2 {[%emt 0:06:00]} Bd7 {[%emt 0:01:54]} 22. d6 {[%emt 0:01:10]} Qc8 {[%emt 0:01:43]} 23. Qg5 {[%emt 0:02:12]} Be6 {[%emt 0:01:29]} 24. Qxe5 {[%emt 0:00:48]} Rg8 {[%emt 0:01:08]} 25. Ba4+ {[%emt 0:00:52]} 1-0

[Event "ISR-ch Women 2018"]
[Site "Ma'alot-Tarshih"]
[Date "2018.12.15"]
[Round "4"]
[White "Shvayger, Yuliya"]
[Black "Klinova, Masha"]
[Result "1/2-1/2"]
[ECO "B07"]
[WhiteElo "2393"]
[BlackElo "2267"]
[Annotator "NA"]
[PlyCount "63"]
[EventDate "2018.12.11"]
[EventType "swiss"]
[EventCountry "ISR"]
[SourceTitle "playchess.com"]
[Source "ChessBase"]
[SourceQuality "1"]
[TimeControl "40/5400+30:1800+30"]

1. e4 {[%emt 0:03:41]} d6 {[%emt 0:00:00]} 2. d4 {[%emt 0:00:24]} Nf6 {[%emt 0:00:00]} 3. Nc3 {[%emt 0:00:21]} g6 {[%emt 0:00:00]} 4. Be3 {[%emt 0:01:51]} c6 {[%emt 0:00:13]} 5. Qd2 {[%emt 0:00:49]} b5 {[%emt 0:02:37]} 6. Bd3 {[%emt 0:04:19]} Nbd7 {[%emt 0:04:43]} 7. h3 {[%emt 0:02:31]} Bg7 {[%emt 0:02:59]} 8. Nf3 {[%emt 0:00:07]} e5 {[%emt 0:01:46]} 9. dxe5 {[%emt 0:06:51]} dxe5 {[%emt 0:07:51]} 10. O-O {[%emt 0:00:12]} Bb7 {[%emt 0:03:43]} 11. a4 {[%emt 0:06:17]} a6 {[%emt 0:02:25]} 12. Ne2 {[%emt 0:18:11]} Qe7 {[%emt 0:02:44]} 13. Ng3 {[%emt 0:02:09]} O-O {[%emt 0:00:42]} 14. Rfd1 {[%emt 0:05:50]} Rfe8 {[%emt 0:07:05]} 15. b4 {[%emt 0:05:29]} Bf8 {[%emt 0:14:19]} 16. Rdb1 {[%emt 0:01:57]} Red8 {[%emt 0:03:38]} 17. Qe2 {[%emt 0:03:26]} Rac8 {[%emt 0:15:03]} 18. c4 {[%emt 0:01:43]} c5 {[%emt 0:04:47]} 19. axb5 {[%emt 0:06:37]} cxb4 {[%emt 0:01:21]} 20. bxa6 {[%emt 0:00:07]} Ba8 {[%emt 0:00:05]} 21. Nd2 {[%emt 0:09:07]} Nc5 {[%emt 0:01:04]} 22. Bxc5 {[%emt 0:00:02]} Qxc5 {[%emt 0:01:16]} 23. Nb3 {[%emt 0:00:02]} Qa7 {[%emt 0:01:41]} 24. Ra5 {[%emt 0:04:18]} Nd7 {[%emt 0:02:45]} 25. Nf1 {[%emt 0:03:39]} Nc5 {[%emt 0:00:38]} 26. Nxc5 {[%emt 0:00:07]} Bxc5 {[%emt 0:00:14]} 27. Ne3 {[%emt 0:00:13]} Rd6 {[%emt 0:08:11]} 28. Nd5 {[%emt 0:00:41]} Rxa6 {[%emt 0:01:15]} 29. Rxa6 {[%emt 0:00:19]} Qxa6 {[%emt 0:00:08]} 30. Nxb4 {[%emt 0:00:09]} Qd6 {[%emt 0:02:49]} 31. Nd5 {[%emt 0:00:13]} Kg7 {[%emt 0:00:28]} 32. Qb2 {[%emt 0:05:50]} 1/2-1/2

[Event "ISR-ch Women 2018"]
[Site "Ma'alot-Tarshih"]
[Date "2018.12.15"]
[Round "4"]
[White "Nesterovskaya, Anzhelika"]
[Black "Ovechkin, Lilia"]
[Result "1-0"]
[ECO "C47"]
[WhiteElo "2130"]
[BlackElo "1779"]
[Annotator "NA"]
[PlyCount "69"]
[EventDate "2018.12.11"]
[EventType "swiss"]
[EventCountry "ISR"]
[SourceTitle "playchess.com"]
[Source "ChessBase"]
[SourceQuality "1"]
[TimeControl "40/5400+30:1800+30"]

1. e4 e5 2. Nc3 Nf6 3. Nf3 Nc6 4. d4 exd4 5. Nd5 Be7 6. Nxd4 Nxd5 7. exd5 Nxd4 8. Qxd4 Bf6 9. Qd3 Qe7+ 10. Be2 O-O 11. O-O Re8 12. Bf3 d6 13. c3 g6 14. Bd2 Bf5 15. Qb5 Qd7 16. Qc4 b5 17. Qb3 Bd3 18. Rfe1 Qf5 19. Rxe8+ Rxe8 20. Be3 Bc4 21. Qd1 h5 22. h3 a6 23. b3 Bxc3 24. Rc1 Bxb3 25. axb3 b4 26. Qc2 Qe5 27. Bd2 Bxd2 28. Qxd2 a5 29. Rxc7 Qe1+ 30. Qxe1 Rxe1+ 31. Kh2 Rb1 32. Ra7 Ra1 33. Be2 Kf8 34. Bc4 Ke8 35. Bb5+ 1-0

[Event "ISR-ch Women 2018"]
[Site "Ma'alot-Tarshih"]
[Date "2018.12.15"]
[Round "4"]
[White "Lahav, Michal"]
[Black "Levitan, Ronit"]
[Result "1-0"]
[ECO "A07"]
[WhiteElo "2059"]
[BlackElo "1875"]
[Annotator "NA"]
[PlyCount "54"]
[EventDate "2018.12.11"]
[EventType "swiss"]
[EventCountry "ISR"]
[SourceTitle "playchess.com"]
[Source "ChessBase"]
[SourceQuality "1"]
[TimeControl "40/5400+30:1800+30"]

1. Nf3 {[%emt 0:00:04]} d5 {[%emt 0:00:00]} 2. g3 {[%emt 0:00:07]} c6 {[%emt 0:00:00]} 3. Bg2 {[%emt 0:00:15]} Bg4 {[%emt 0:00:10]} 4. O-O {[%emt 0:00:14]} Nd7 {[%emt 0:00:24]} 5. d3 {[%emt 0:00:17]} Ngf6 {[%emt 0:00:46]} 6. Nbd2 {[%emt 0:00:18]} e6 {[%emt 0:01:23]} 7. e4 {[%emt 0:00:40]} dxe4 {[%emt 0:05:28]} 8. dxe4 {[%emt 0:02:26]} Bc5 {[%emt 0:01:32]} 9. Qe1 {[%emt 0:03:08]} e5 {[%emt 0:05:32]} 10. Nc4 {[%emt 0:08:04]} Qc7 {[%emt 0:01:27]} 11. b4 {[%emt 0:04:07]} Be7 {[%emt 0:23:57]} 12. Bb2 {[%emt 0:02:47]} Bxf3 {[%emt 0:00:07]} 13. Bxf3 {[%emt 0:00:06]} b5 {[%emt 0:07:19]} 14. Ne3 {[%emt 0:06:12]} Nb6 {[%emt 0:02:26]} 15. Qc3 {[%emt 0:06:47]} Nfd7 {[%emt 0:22:40]} 16. Nd5 {[%emt 0:09:03]} Qb7 {[%emt 0:01:17]} 17. Nxe7 {[%emt 0:08:31]} Kxe7 {[%emt 0:00:03]} 18. Rad1 {[%emt 0:00:17]} Na4 {[%emt 0:02:28]} 19. Rxd7+ {[%emt 0:02:46]} Qxd7 {[%emt 0:01:53]} 20. Qxe5+ {[%emt 0:00:07]} Qe6 {[%emt 0:00:51]} 21. Qg5+ {[%emt 0:00:11]} Ke8 {[%emt 0:05:17]} 22. Qxg7 {[%emt 0:16:00]} Rf8 {[%emt 0:00:31]} 23. Bg4 {[%emt 0:01:28]} Qe7 {[%emt 0:07:43]} 24. Bf6 {[%emt 0:03:52]} Qxb4 {[%emt 0:02:39]} 25. Rd1 {[%emt 0:00:25]} Nb6 {[%emt 0:00:43]} 26. Qg5 {[%emt 0:00:20]} Qxe4 {[%emt 0:01:59]} 27. Qd2 {[%emt 0:00:09]} Qd4 {[%emt 0:04:55]} 1-0

[Event "ISR-ch Women 2018"]
[Site "Ma'alot-Tarshih"]
[Date "2018.12.15"]
[Round "4"]
[White "Haitovich, Avital"]
[Black "Katkov, Michelle"]
[Result "1/2-1/2"]
[ECO "C84"]
[WhiteElo "1979"]
[BlackElo "1887"]
[Annotator "NA RC"]
[PlyCount "113"]
[EventDate "2018.12.11"]
[EventType "swiss"]
[EventCountry "ISR"]
[SourceTitle "playchess.com"]
[Source "ChessBase"]
[SourceQuality "1"]
[TimeControl "40/5400+30:1800+30"]

1. e4 {[%emt 0:00:00]} e5 {[%emt 0:00:00]} 2. Nf3 {[%emt 0:00:00]} Nc6 {[%emt 0:00:00]} 3. Bb5 {[%emt 0:00:00]} a6 {[%emt 0:00:10]} 4. Ba4 {[%emt 0:00:02]} Nf6 {[%emt 0:00:08]} 5. d4 {[%emt 0:00:08]} exd4 {[%emt 0:00:43]} 6. O-O {[%emt 0:00:10]} Be7 {[%emt 0:00:54]} 7. Re1 {[%emt 0:00:10]} b5 {[%emt 0:00:21]} 8. Bb3 {[%emt 0:00:16]} d6 {[%emt 0:00:17]} 9. Bd5 {[%emt 0:00:29]} Nxd5 {[%emt 0:00:32]} 10. exd5 {[%emt 0:00:03]} Ne5 {[%emt 0:00:30]} 11. Nxd4 {[%emt 0:00:38]} O-O {[%emt 0:00:54]} 12. a4 {[%emt 0:00:33]} Bg4 {[%emt 0:00:28]} 13. Qd2 {[%emt 0:00:50] C84: Closed Ruy Lopez: Unusual White 6th moves} Bd7 {[%emt 0:01:02]} 14. Nc3 {[%emt 0:00:43]} b4 {[%emt 0:00:35]} (14... Rb8 15. axb5 axb5 16. b3 Re8 17. Bb2 Bg5 18. f4 Bh6 19. g3 Ra8 20. Nd1 Rxa1 21. Bxa1 {0-1 (32) Radulski,J (2552)-Mastrovasilis,D (2631) Plovdiv 2012}) 15. Ne4 {[%emt 0:05:34]} Qb8 {[%emt 0:01:13]} 16. b3 {[%emt 0:08:54]} Qb7 {[%emt 0:04:07]} 17. c4 {[%emt 0:08:10]} bxc3 {[%emt 0:03:22]} 18. Nxc3 {[%emt 0:00:20]} Bf6 $146 {[%emt 0:07:52]} ({Predecessor:} 18... Rfe8 19. Bb2 Ng6 20. Qd3 Bf6 {½-½ (47) Perez Rodriguez,L (2420)-De la Paz Perdomo,F (2461) Santa Clara 2005}) 19. Bb2 {[%emt 0:09:38]} c5 {[%emt 0:09:10]} 20. dxc6 {[%emt 0:05:35]} Nxc6 {[%emt 0:01:01]} 21. Ne4 {[%emt 0:12:19]} Bxd4 {[%emt 0:06:04]} 22. Bxd4 {[%emt 0:00:18]} Nxd4 {[%emt 0:03:31]} 23. Qxd4 {[%emt 0:00:30]} Be6 {[%emt 0:11:35]} 24. Re3 {[%emt 0:09:10]} Qe7 {[%emt 0:08:40]} 25. Nxd6 {[%emt 0:13:25]} Rfd8 {[%emt 0:03:05]} 26. Rd1 {[%emt 0:01:32]} Rd7 {[%emt 0:04:03]} 27. Red3 {[%emt 0:05:20]} Rad8 {[%emt 0:01:30]} 28. Qb6 {[%emt 0:10:36]} h6 {[%emt 0:03:13]} 29. h3 {[%emt 0:02:50]} Kh7 {[%emt 0:04:01]} 30. b4 {[%emt 0:02:46]} Bb3 {[%emt 0:02:27]} 31. Rxb3 {[%emt 0:02:37]} Rxd6 {[%emt 0:00:07]} 32. Rxd6 {[%emt 0:00:12]} Qe1+ {[%emt 0:04:33]} 33. Kh2 {[%emt 0:00:08]} Qe5+ {[%emt 0:00:03]} 34. Rg3 {[%emt 0:02:05]} Rxd6 {[%emt 0:00:10]} 35. Qe3 {[%emt 0:00:18]} Qa1 {[%emt 0:06:12]} 36. Qc3 {[%emt 0:00:31]} Qxc3 {[%emt 0:00:41]} 37. Rxc3 {[%emt 0:00:02]} Rd4 {[%emt 0:01:20]} 38. Rb3 {[%emt 0:00:16]} Kg6 {[%emt 0:02:02]} 39. b5 {[%emt 0:00:53]} axb5 {[%emt 0:00:06]} 40. axb5 {[%emt 0:00:03]} Rd7 {[%emt 0:00:13]} 41. Kg3 {[%emt 0:05:02]} Kf5 {[%emt 0:01:04]} 42. Kf3 {[%emt 0:01:57]} Rb7 {[%emt 0:00:39]} 43. b6 {[%emt 0:12:10]} Ke5 {[%emt 0:01:56]} 44. Ke3 {[%emt 0:03:58]} Kd5 {[%emt 0:02:57]} 45. Kf4 {[%emt 0:00:44]} Kc5 {[%emt 0:02:36]} 46. Ke5 {[%emt 0:00:30]} Re7+ {[%emt 0:00:07]} 47. Kf5 {[%emt 0:00:10]} Rb7 {[%emt 0:00:05]} 48. g4 {[%emt 0:00:41]} Rxb6 {[%emt 0:02:51]} 49. Rxb6 {[%emt 0:00:07]} Kxb6 {[%emt 0:00:03]} 50. f4 {[%emt 0:00:19]} Kc6 {[%emt 0:01:01]} 51. h4 {[%emt 0:05:50]} Kd6 {[%emt 0:01:33]} 52. h5 {[%emt 0:00:16]} Ke7 {[%emt 0:01:03]} 53. g5 {[%emt 0:00:40]} hxg5 $1 {[%emt 0:05:40]} 54. fxg5 $11 {[%emt 0:01:04]} Kf8 {[%emt 0:00:14]} 55. h6 {[%emt 0:02:01]} gxh6 {[%emt 0:00:17]} 56. gxh6 {[%emt 0:00:07]} Kg8 {[%emt 0:00:07]} 57. Ke4 {[%emt 0:04:50]} 1/2-1/2

[Event "ISR-ch Women 2018"]
[Site "Ma'alot-Tarshih"]
[Date "2018.12.15"]
[Round "4"]
[White "Orian, Noga"]
[Black "Vardi, Shlomit"]
[Result "0-1"]
[ECO "E67"]
[WhiteElo "1343"]
[BlackElo "1910"]
[Annotator "NA"]
[PlyCount "64"]
[EventDate "2018.12.11"]
[EventType "swiss"]
[EventCountry "ISR"]
[SourceTitle "playchess.com"]
[Source "ChessBase"]
[SourceQuality "1"]
[TimeControl "40/5400+30:1800+30"]

1. Nf3 {[%emt 0:00:00]} d6 {[%emt 0:00:00]} 2. g3 {[%emt 0:00:00]} Nf6 {[%emt 0:00:30]} 3. Bg2 {[%emt 0:00:00]} g6 {[%emt 0:00:35]} 4. O-O {[%emt 0:00:00]} Bg7 {[%emt 0:00:08]} 5. d4 {[%emt 0:00:16]} O-O {[%emt 0:00:13]} 6. c4 {[%emt 0:00:38]} Nbd7 {[%emt 0:00:34]} 7. Nc3 {[%emt 0:00:20]} c6 {[%emt 0:02:49]} 8. b3 {[%emt 0:05:28]} Re8 {[%emt 0:03:18]} 9. Bb2 {[%emt 0:00:41]} e5 {[%emt 0:00:39]} 10. e3 {[%emt 0:00:32]} Nh5 {[%emt 0:09:56]} 11. Rc1 {[%emt 0:10:49]} f5 {[%emt 0:00:47]} 12. Ba3 {[%emt 0:06:35]} e4 {[%emt 0:03:14]} 13. Ne1 {[%emt 0:08:59]} Ndf6 {[%emt 0:03:30]} 14. b4 {[%emt 0:11:08]} g5 {[%emt 0:03:31]} 15. d5 {[%emt 0:09:08]} f4 {[%emt 0:11:55]} 16. exf4 {[%emt 0:06:56]} gxf4 {[%emt 0:03:18]} 17. Nxe4 {[%emt 0:10:01]} Nxe4 {[%emt 0:00:40]} 18. Bxe4 {[%emt 0:00:17]} Rxe4 {[%emt 0:00:15]} 19. Qxh5 {[%emt 0:00:09]} Qe7 {[%emt 0:10:21]} 20. Ng2 {[%emt 0:12:47]} fxg3 {[%emt 0:05:22]} 21. hxg3 {[%emt 0:00:39]} Bg4 {[%emt 0:00:59]} 22. Qh2 {[%emt 0:00:34]} Qf7 {[%emt 0:12:38]} 23. Ne3 {[%emt 0:02:38]} Bf3 {[%emt 0:04:46]} 24. Rc2 {[%emt 0:03:12]} Qg6 {[%emt 0:06:50]} 25. Bb2 {[%emt 0:01:17]} Bh6 {[%emt 0:01:30]} 26. Bc1 {[%emt 0:00:41]} Rae8 {[%emt 0:01:28]} 27. Re1 {[%emt 0:01:27]} R8e5 {[%emt 0:00:34]} 28. Qh3 {[%emt 0:04:08]} Rh5 {[%emt 0:00:36]} 29. Qc8+ {[%emt 0:01:31]} Re8 {[%emt 0:00:10]} 30. Ng2 {[%emt 0:03:29]} Rxc8 {[%emt 0:00:15]} 31. Rc3 {[%emt 0:00:26]} Qg4 {[%emt 0:02:09]} 32. Bxh6 {[%emt 0:00:41]} Rh1+ {[%emt 0:00:24]} 0-1

[Event "ISR-ch Women 2018"]
[Site "Ma'alot-Tarshih"]
[Date "2018.12.16"]
[Round "5"]
[White "Shvayger, Yuliya"]
[Black "Efroimski, Marsel"]
[Result "1/2-1/2"]
[ECO "B20"]
[WhiteElo "2393"]
[BlackElo "2301"]
[Annotator "NA"]
[PlyCount "94"]
[EventDate "2018.12.11"]
[EventType "swiss"]
[EventCountry "ISR"]
[SourceTitle "playchess.com"]
[Source "ChessBase"]
[SourceQuality "1"]
[TimeControl "40/5400+30:1800+30"]

1. e4 {[%emt 0:01:37]} c5 {[%emt 0:00:00]} 2. b3 {[%emt 0:00:23]} Nc6 {[%emt 0:06:44]} 3. Bb2 {[%emt 0:00:09]} e5 {[%emt 0:02:20]} 4. Bc4 {[%emt 0:01:09]} Nf6 {[%emt 0:00:15]} 5. d3 {[%emt 0:02:15]} Be7 {[%emt 0:05:48]} 6. Nc3 {[%emt 0:00:45]} a6 {[%emt 0:03:48]} 7. a4 {[%emt 0:00:24]} Rb8 {[%emt 0:01:11]} 8. Nge2 {[%emt 0:01:19]} O-O {[%emt 0:05:49]} 9. O-O {[%emt 0:00:29]} d6 {[%emt 0:07:34]} 10. Qd2 {[%emt 0:08:23]} Nh5 {[%emt 0:07:08]} 11. Bc1 {[%emt 0:28:40]} h6 {[%emt 0:03:51]} 12. Qd1 {[%emt 0:03:07]} Bg5 {[%emt 0:06:49]} 13. Rb1 {[%emt 0:08:18]} Bxc1 {[%emt 0:09:28]} 14. Qxc1 {[%emt 0:01:30]} Qg5 {[%emt 0:00:18]} 15. f4 {[%emt 0:01:02]} exf4 {[%emt 0:01:42]} 16. Nxf4 {[%emt 0:00:06]} Nxf4 {[%emt 0:07:19]} 17. Qxf4 {[%emt 0:00:54]} Qxf4 {[%emt 0:01:24]} 18. Rxf4 {[%emt 0:00:02]} Be6 {[%emt 0:03:27]} 19. Rf2 {[%emt 0:02:31]} Nd4 {[%emt 0:14:45]} 20. a5 {[%emt 0:03:04]} Nc6 {[%emt 0:00:47]} 21. Ra1 {[%emt 0:00:02]} Rbe8 {[%emt 0:04:20]} 22. Bd5 {[%emt 0:00:48]} Bxd5 {[%emt 0:02:17]} 23. Nxd5 {[%emt 0:00:03]} f5 {[%emt 0:01:21]} 24. exf5 {[%emt 0:05:23]} Re5 {[%emt 0:00:12]} 25. Nc3 {[%emt 0:00:44]} Rexf5 {[%emt 0:01:50]} 26. Rxf5 {[%emt 0:00:03]} Rxf5 {[%emt 0:00:01]} 27. Ne4 {[%emt 0:00:02]} Rd5 {[%emt 0:00:46]} 28. Kf2 {[%emt 0:07:14]} Kf8 {[%emt 0:00:13]} 29. Ke3 {[%emt 0:00:18]} Ke7 {[%emt 0:00:15]} 30. h3 {[%emt 0:02:14]} Rf5 {[%emt 0:00:24]} 31. c3 {[%emt 0:01:29]} Kd7 {[%emt 0:00:50]} 32. Ke2 {[%emt 0:02:28]} Re5 {[%emt 0:00:50]} 33. Kd2 {[%emt 0:00:53]} Rf5 {[%emt 0:00:21]} 34. Ke3 {[%emt 0:00:25]} Kc7 {[%emt 0:00:42]} 35. Ke2 {[%emt 0:01:57]} Ne7 {[%emt 0:01:48]} 36. g3 {[%emt 0:04:50]} Kc6 {[%emt 0:00:29]} 37. c4 {[%emt 0:03:26]} Kd7 {[%emt 0:00:17]} 38. Nd2 {[%emt 0:04:10]} Nc6 {[%emt 0:00:23]} 39. Nf3 {[%emt 0:00:02]} Rf7 {[%emt 0:00:54]} 40. Ke3 {[%emt 0:03:51]} Re7+ {[%emt 0:00:40]} 41. Kf2 {[%emt 0:31:00]} Rf7 {[%emt 0:30:37]} 42. Kg2 {[%emt 0:00:48]} g5 {[%emt 0:00:00]} 43. Ra2 {[%emt 0:00:00]} Ke6 {[%emt 0:00:00]} 44. g4 {[%emt 0:00:00]} Rf4 {[%emt 0:00:00]} 45. Kg3 {[%emt 0:00:00]} Ne5 {[%emt 0:00:00]} 46. Nxe5 {[%emt 0:00:00]} dxe5 {[%emt 0:00:00]} 47. Rf2 {[%emt 0:00:00]} Kd6 {[%emt 0:00:00]} 1/2-1/2